bitfinex-derivatives/quotes_BNBF0:USTF0_20250908
["timestamp","ask_amount","ask_price","bid_price","bid_amount"]
[1757310271916,0.66107526,873.0,870.22,0.5]
[1757310272211,0.66107526,872.99,870.43,0.1992568]
[1757310272515,0.66107526,872.98,870.43,0.1992568]
[1757310272716,0.66107526,872.97,870.43,0.1992568]
[1757310272916,0.66107526,872.96,870.43,0.1992568]
[1757310273213,0.66107526,872.95,870.43,0.1992568]
[1757310273417,0.66107526,872.94,870.43,0.1992568]
[1757310273614,0.66107526,872.93,870.43,0.1992568]
[1757310273912,3.53327199,873.45,870.43,0.1992568]
[1757310273913,0.66107526,872.92,870.43,0.1992568]
[1757310274118,0.66107526,872.91,870.43,0.1992568]
[1757310274316,0.66107526,872.9,870.43,0.1992568]
[1757310274516,0.19926364,873.89,870.43,0.1992568]
[1757310274517,0.66107526,872.89,870.43,0.1992568]
[1757310274816,0.66107526,872.88,870.43,0.1992568]
[1757310275016,0.66107526,872.87,870.43,0.1992568]
[1757310275216,0.66107526,872.86,870.43,0.1992568]
[1757310275417,0.66107526,872.85,870.43,0.1992568]
[1757310275617,0.66107526,872.84,870.43,0.1992568]
[1757310275917,0.66107526,872.83,870.43,0.1992568]
[1757310276112,0.66107526,872.82,870.43,0.1992568]
[1757310276318,0.66107526,872.81,870.43,0.1992568]
[1757310276518,0.66107526,872.8,870.43,0.1992568]
[1757310276815,0.66107526,872.79,870.43,0.1992568]
[1757310277017,0.66107526,872.78,870.43,0.1992568]
[1757310277217,2.53116535,873.41,870.43,0.1992568]
[1757310277218,0.66107526,872.77,870.43,0.1992568]
[1757310277419,0.66107526,872.76,870.43,0.1992568]
[1757310277614,0.66107526,872.75,870.43,0.1992568]
[1757310277914,0.66107526,872.74,870.43,0.1992568]
[1757310278214,0.66107526,872.73,870.43,0.1992568]
[1757310278414,0.66107526,872.72,870.43,0.1992568]
[1757310278618,0.66107526,872.71,870.43,0.1992568]
[1757310278818,0.66107526,872.7,870.43,0.1992568]
[1757310279015,0.66107526,872.69,870.43,0.1992568]
[1757310279218,0.66107526,872.68,870.43,0.1992568]
[1757310279416,0.66107526,872.67,870.43,0.1992568]
[1757310279618,0.66107526,872.66,870.43,0.1992568]
[1757310279914,0.66107526,872.65,870.43,0.1992568]
[1757310280117,0.66107526,872.64,870.43,0.1992568]
[1757310280314,0.66107526,872.63,870.43,0.1992568]
[1757310280515,0.66107526,872.62,870.43,0.1992568]
[1757310280720,0.66107526,872.61,870.43,0.1992568]
[1757310280921,0.66107526,872.6,870.43,0.1992568]
[1757310281216,0.66107526,872.59,870.43,0.1992568]
[1757310281419,0.66107526,872.58,870.43,0.1992568]
[1757310281619,0.66107526,872.57,870.43,0.1992568]
[1757310281820,0.66107526,872.56,870.43,0.1992568]
[1757310282018,0.66107526,872.55,870.43,0.1992568]
[1757310282220,0.66107526,872.54,870.43,0.1992568]
[1757310282421,0.66107526,872.53,870.43,0.1992568]
[1757310282722,0.66107526,872.52,870.43,0.1992568]
[1757310282922,0.66107526,872.51,870.43,0.1992568]
[1757310283118,0.66107526,872.5,870.43,0.1992568]
[1757310283323,0.66107526,872.49,870.43,0.1992568]
[1757310283519,0.66107526,872.48,870.43,0.1992568]
[1757310283720,0.66107526,872.47,870.43,0.1992568]
[1757310283924,0.66107526,872.46,870.43,0.1992568]
[1757310284121,0.66107526,872.45,870.43,0.1992568]
[1757310284326,0.66107526,872.44,870.43,0.1992568]
[1757310284622,0.66107526,872.43,870.43,0.1992568]
[1757310284921,0.66107526,872.42,870.43,0.1992568]
[1757310285125,0.66107526,872.41,870.43,0.1992568]
[1757310285320,0.66107526,872.4,870.43,0.1992568]
[1757310285521,0.66107526,872.39,870.43,0.1992568]
[1757310285823,0.66107526,872.38,870.43,0.1992568]
[1757310286025,0.66107526,872.37,870.43,0.1992568]
[1757310286324,0.66107526,872.36,870.43,0.1992568]
[1757310286526,0.66107526,872.35,870.43,0.1992568]
[1757310286723,0.66107526,872.34,870.43,0.1992568]
[1757310286928,0.66107526,872.33,870.43,0.1992568]
[1757310287223,0.66107526,872.32,870.43,0.1992568]
[1757310287424,0.66107526,872.31,870.43,0.1992568]
[1757310287622,0.66107526,872.3,870.43,0.1992568]
[1757310287825,0.66107526,872.29,870.43,0.1992568]
[1757310288020,0.66107526,872.28,870.43,0.1992568]
[1757310288223,0.66107526,872.27,870.43,0.1992568]
[1757310288424,0.66107526,872.26,870.43,0.1992568]
[1757310288623,0.66107526,872.25,870.43,0.1992568]
[1757310288823,0.66107526,872.24,870.43,0.1992568]
[1757310289022,0.66107526,872.23,870.43,0.1992568]
[1757310289228,0.66107526,872.22,870.43,0.1992568]
[1757310289425,0.66107526,872.21,870.43,0.1992568]
[1757310289626,0.66107526,872.2,870.43,0.1992568]
[1757310289827,0.66107526,872.19,870.43,0.1992568]
[1757310290029,0.66107526,872.18,870.43,0.1992568]
[1757310290226,0.66107526,872.17,870.43,0.1992568]
[1757310290429,0.66107526,872.16,870.43,0.1992568]
[1757310290626,0.66107526,872.15,870.43,0.1992568]
[1757310290929,0.66107526,872.14,870.43,0.1992568]
[1757310291130,0.66107526,872.13,870.43,0.1992568]
[1757310291326,0.66107526,872.12,870.43,0.1992568]
[1757310291530,0.66107526,872.11,870.43,0.1992568]
[1757310291732,0.66107526,872.1,870.43,0.1992568]
[1757310291930,0.66107526,872.09,870.43,0.1992568]
[1757310292126,1.52467829,872.6,870.43,0.1992568]
[1757310292430,0.65898424,872.59,870.43,0.1992568]
[1757310292631,1.52467829,872.31,870.43,0.1992568]
[1757310292928,0.65898424,872.3,870.43,0.1992568]
[1757310293132,0.65898424,872.29,870.43,0.1992568]
[1757310293329,0.65898424,872.28,870.43,0.1992568]
[1757310293529,0.65898424,872.27,870.43,0.1992568]
[1757310293727,0.65898424,872.26,870.43,0.1992568]
[1757310293926,0.65898424,872.25,870.43,0.1992568]
[1757310294226,0.65898424,872.24,870.43,0.1992568]
[1757310294426,0.65898424,872.23,870.43,0.1992568]
[1757310294630,0.65898424,872.22,870.43,0.1992568]
[1757310294831,0.65898424,872.21,870.43,0.1992568]
[1757310295031,0.65898424,872.2,870.43,0.1992568]
[1757310295326,0.65898424,872.19,870.43,0.1992568]
[1757310295527,0.65898424,872.18,870.43,0.1992568]
[1757310295727,0.65898424,872.17,870.43,0.1992568]
[1757310296030,0.65898424,872.16,870.43,0.1992568]
[1757310296227,0.65898424,872.15,870.43,0.1992568]
[1757310296529,0.65898424,872.14,870.43,0.1992568]
[1757310296729,0.65898424,872.13,870.43,0.1992568]
[1757310297027,0.65898424,872.12,870.43,0.1992568]
[1757310297230,0.65898424,872.11,870.43,0.1992568]
[1757310297430,0.65898424,872.1,870.43,0.1992568]
[1757310297630,0.65898424,872.09,870.43,0.1992568]
[1757310297930,1.52467829,872.27,870.43,0.1992568]
[1757310298130,0.65915531,872.26,870.43,0.1992568]
[1757310298330,0.65915531,872.25,870.43,0.1992568]
[1757310298530,0.65915531,872.24,870.43,0.1992568]
[1757310298831,1.01656821,872.09,870.43,0.1992568]
[1757310300729,1.01656821,872.1,870.43,0.1992568]
[1757310300933,0.65907416,872.09,870.43,0.1992568]
[1757310301131,1.01656821,872.1,870.43,0.1992568]
[1757310301328,0.65907408,872.09,870.43,0.1992568]
[1757310301528,1.01656821,872.1,870.43,0.1992568]
[1757310301731,0.65900489,872.09,870.43,0.1992568]
[1757310302030,1.01656821,872.65,870.43,0.1992568]
[1757310302236,0.6591502,872.64,870.43,0.1992568]
[1757310302535,0.6591502,872.63,870.43,0.1992568]
[1757310302830,0.6591502,872.62,870.43,0.1992568]
[1757310303033,0.6591502,872.61,870.43,0.1992568]
[1757310303229,0.6591502,872.6,870.43,0.1992568]
[1757310303430,0.6591502,872.59,870.43,0.1992568]
[1757310303629,0.6591502,872.58,870.43,0.1992568]
[1757310303830,0.6591502,872.57,870.43,0.1992568]
[1757310304035,0.6591502,872.56,870.43,0.1992568]
[1757310304237,0.6591502,872.55,870.43,0.1992568]
[1757310304531,1.01656821,872.47,870.43,0.1992568]
[1757310304733,0.6591502,872.46,870.43,0.1992568]
[1757310304931,0.6591502,872.45,870.43,0.1992568]
[1757310305135,0.6591502,872.44,870.43,0.1992568]
[1757310305336,0.6591502,872.43,870.43,0.1992568]
[1757310305635,0.6591502,872.42,870.43,0.1992568]
[1757310305832,1.01656821,872.32,870.43,0.1992568]
[1757310306035,0.6591502,872.31,870.43,0.1992568]
[1757310306335,0.6591502,872.3,870.43,0.1992568]
[1757310306538,0.6591502,872.29,870.43,0.1992568]
[1757310306836,0.6591502,872.28,870.43,0.1992568]
[1757310307037,0.6591502,872.27,870.43,0.1992568]
[1757310307236,0.6591502,872.26,870.43,0.1992568]
[1757310307433,0.6591502,872.25,870.43,0.1992568]
[1757310307637,0.6591502,872.24,870.43,0.1992568]
[1757310307835,0.6591502,872.23,870.43,0.1992568]
[1757310308032,0.6591502,872.22,870.43,0.1992568]
[1757310308232,0.6591502,872.21,870.43,0.1992568]
[1757310308434,0.6591502,872.2,870.43,0.1992568]
[1757310308731,0.6591502,872.19,870.43,0.1992568]
[1757310308933,0.6591502,872.18,870.43,0.1992568]
[1757310309139,0.6591502,872.17,870.43,0.1992568]
[1757310309338,0.6591502,872.16,870.43,0.1992568]
[1757310309537,0.6591502,872.15,870.43,0.1992568]
[1757310309838,0.6591502,872.14,870.43,0.1992568]
[1757310310034,0.6591502,872.13,870.43,0.1992568]
[1757310310234,0.6591502,872.12,870.43,0.1992568]
[1757310310435,0.6579672,872.11,870.43,0.1992568]
[1757310310638,1.01656821,872.43,870.43,0.1992568]
[1757310310834,0.6579672,872.42,870.43,0.1992568]
[1757310311034,0.6579672,872.41,870.43,0.1992568]
[1757310311236,0.6579672,872.4,870.43,0.1992568]
[1757310311439,0.6579672,872.39,870.43,0.1992568]
[1757310311641,0.6579672,872.38,870.43,0.1992568]
[1757310311841,0.6579672,872.37,870.43,0.1992568]
[1757310312037,1.01656821,872.33,870.43,0.1992568]
[1757310312241,0.6579672,872.32,870.43,0.1992568]
[1757310312541,0.6579672,872.31,870.43,0.1992568]
[1757310312741,0.6579672,872.3,870.43,0.1992568]
[1757310312939,0.6579672,872.29,870.43,0.1992568]
[1757310313138,0.6579672,872.28,870.43,0.1992568]
[1757310313337,0.6579672,872.27,870.43,0.1992568]
[1757310313538,0.6579672,872.26,870.43,0.1992568]
[1757310313740,0.6579672,872.25,870.43,0.1992568]
[1757310313938,0.6579672,872.24,870.43,0.1992568]
[1757310314138,0.6579672,872.23,870.43,0.1992568]
[1757310314443,0.6579672,872.22,870.43,0.1992568]
[1757310314642,0.6579672,872.21,870.43,0.1992568]
[1757310314841,0.6579672,872.2,870.43,0.1992568]
[1757310315038,0.6579672,872.19,870.43,0.1992568]
[1757310315240,0.6579672,872.18,870.43,0.1992568]
[1757310315440,0.6579672,872.17,870.43,0.1992568]
[1757310315642,0.6579672,872.16,870.43,0.1992568]
[1757310315841,0.6579672,872.15,870.43,0.1992568]
[1757310316040,0.6579672,872.14,870.43,0.1992568]
[1757310316241,0.6579672,872.13,870.43,0.1992568]
[1757310316541,0.6579672,872.12,870.43,0.1992568]
[1757310316745,0.6579672,872.11,870.43,0.1992568]
[1757310316946,0.6579672,872.1,870.43,0.1992568]
[1757310317147,1.01656821,872.36,870.43,0.1992568]
[1757310317544,1.67406606,872.35,870.43,0.1992568]
[1757310317848,1.01656821,872.33,870.43,0.1992568]
[1757310318045,0.65749785,872.32,870.43,0.1992568]
[1757310318250,1.01656821,872.11,870.43,0.1992568]
[1757310318550,1.67406606,872.1,870.43,0.1992568]
[1757310318752,1.01656821,872.1,870.43,0.1992568]
[1757310319049,0.91491139,872.1,870.43,0.1992568]
[1757310320955,1.52467829,872.19,870.43,0.1992568]
[1757310321156,0.65655443,872.18,870.43,0.1992568]
[1757310321355,0.65655443,872.17,870.43,0.1992568]
[1757310321556,0.65655443,872.16,870.43,0.1992568]
[1757310321757,0.65655443,872.15,870.43,0.1992568]
[1757310321950,0.65655443,872.14,870.43,0.1992568]
[1757310322252,0.65655443,872.13,870.43,0.1992568]
[1757310322453,0.65655443,872.12,870.43,0.1992568]
[1757310322666,1.52467829,872.21,870.43,0.1992568]
[1757310322860,0.65671284,872.2,870.43,0.1992568]
[1757310323062,0.65671284,872.19,870.43,0.1992568]
[1757310323265,0.65671284,872.18,870.43,0.1992568]
[1757310323565,0.65671284,872.17,870.43,0.1992568]
[1757310323769,0.65671284,872.16,870.43,0.1992568]
[1757310323962,0.65671284,872.15,870.43,0.1992568]
[1757310324265,0.65671284,872.14,870.43,0.1992568]
[1757310324463,0.65671284,872.13,870.43,0.1992568]
[1757310324767,1.52467829,872.41,870.43,0.1992568]
[1757310324966,0.65691007,872.4,870.43,0.1992568]
[1757310325261,0.65691007,872.39,870.43,0.1992568]
[1757310325465,0.65691007,872.38,870.43,0.1992568]
[1757310325665,0.65691007,872.37,870.43,0.1992568]
[1757310325867,0.65691007,872.36,870.43,0.1992568]
[1757310326066,0.65691007,872.35,870.43,0.1992568]
[1757310326266,5.08316523,874.35,870.43,0.1992568]
[1757310326267,0.65691007,872.34,870.43,0.1992568]
[1757310326466,0.65691007,872.33,870.43,0.1992568]
[1757310326665,0.65691007,872.32,870.43,0.1992568]
[1757310326962,0.65691007,872.31,870.43,0.1992568]
[1757310327262,0.65691007,872.3,870.43,0.1992568]
[1757310327563,0.65691007,872.29,870.43,0.1992568]
[1757310327761,0.65691007,872.28,870.43,0.1992568]
[1757310327967,0.65691007,872.27,870.43,0.1992568]
[1757310328166,0.65691007,872.26,870.43,0.1992568]
[1757310328363,0.65691007,872.25,870.43,0.1992568]
[1757310328665,0.65691007,872.24,870.43,0.1992568]
[1757310328862,0.65691007,872.23,870.43,0.1992568]
[1757310329062,0.65691007,872.22,870.43,0.1992568]
[1757310329266,0.65691007,872.21,870.43,0.1992568]
[1757310329462,1.52467829,872.37,870.43,0.1992568]
[1757310329463,0.65691007,872.2,870.43,0.1992568]
[1757310329662,0.65691007,872.19,870.43,0.1992568]
[1757310329867,0.65691007,872.18,870.43,0.1992568]
[1757310330064,0.65691007,872.17,870.43,0.1992568]
[1757310330364,0.65691007,872.16,870.43,0.1992568]
[1757310330565,0.65691007,872.15,870.43,0.1992568]
[1757310330869,1.52467829,872.36,870.43,0.1992568]
[1757310331168,0.65783005,872.35,870.43,0.1992568]
[1757310331368,0.65783005,872.34,870.43,0.1992568]
[1757310331570,0.65783005,872.33,870.43,0.1992568]
[1757310331769,0.65783005,872.32,870.43,0.1992568]
[1757310331970,0.65783005,872.31,870.43,0.1992568]
[1757310332170,0.65783005,872.3,870.43,0.1992568]
[1757310332367,0.65783005,872.29,870.43,0.1992568]
[1757310332671,2.18250834,872.28,870.43,0.1992568]
[1757310332867,0.65783005,872.27,870.43,0.1992568]
[1757310333072,0.65783005,872.26,870.43,0.1992568]
[1757310333266,0.65783005,872.25,870.43,0.1992568]
[1757310333471,0.65783005,872.24,870.43,0.1992568]
[1757310333771,2.18250834,872.23,870.43,0.1992568]
[1757310333970,0.65783005,872.22,870.43,0.1992568]
[1757310334270,0.65783005,872.21,870.43,0.1992568]
[1757310334470,0.65783005,872.2,870.43,0.1992568]
[1757310334673,0.65783005,872.19,870.43,0.1992568]
[1757310334967,0.65783005,872.18,870.43,0.1992568]
[1757310335269,0.65783005,872.17,870.43,0.1992568]
[1757310335473,0.65783005,872.16,870.43,0.1992568]
[1757310335672,1.52467829,872.06,870.43,0.1992568]
[1757310335972,0.65783005,872.05,870.43,0.1992568]
[1757310336271,0.65783005,872.04,870.43,0.1992568]
[1757310336466,0.65783005,872.03,870.43,0.1992568]
[1757310336670,0.65783005,872.02,870.43,0.1992568]
[1757310336873,0.65783005,872.01,870.43,0.1992568]
[1757310337068,0.65783005,872.0,870.43,0.1992568]
[1757310337268,0.65783005,871.99,870.43,0.1992568]
[1757310337466,0.65783005,871.98,870.43,0.1992568]
[1757310337770,0.65783005,871.97,870.43,0.1992568]
[1757310337971,0.65783005,871.96,870.43,0.1992568]
[1757310338173,0.65783005,871.95,870.43,0.1992568]
[1757310338370,0.65783005,871.94,870.43,0.1992568]
[1757310338673,0.65783005,871.93,870.43,0.1992568]
[1757310338968,0.65783005,871.92,870.43,0.1992568]
[1757310339167,1.52467829,871.97,870.43,0.1992568]
[1757310339370,0.65795015,871.96,870.43,0.1992568]
[1757310339568,0.65795015,871.95,870.43,0.1992568]
[1757310339769,0.65795015,871.94,870.43,0.1992568]
[1757310339969,0.65795015,871.93,870.43,0.1992568]
[1757310340170,0.65795015,871.92,870.43,0.1992568]
[1757310340370,1.52467829,871.99,870.43,0.1992568]
[1757310340674,0.65774161,871.98,870.43,0.1992568]
[1757310340870,0.65774161,871.97,870.43,0.1992568]
[1757310341173,0.65774161,871.96,870.43,0.1992568]
[1757310341371,0.65774161,871.95,870.43,0.1992568]
[1757310341673,0.65774161,871.94,870.43,0.1992568]
[1757310341872,0.65774161,871.93,870.43,0.1992568]
[1757310342073,0.65774161,871.92,870.43,0.1992568]
[1757310342270,1.52467829,871.99,870.43,0.1992568]
[1757310342469,0.65756556,871.98,870.43,0.1992568]
[1757310342773,0.65756556,871.97,870.43,0.1992568]
[1757310342973,0.65756556,871.96,870.43,0.1992568]
[1757310343169,0.65756556,871.95,870.43,0.1992568]
[1757310343372,0.65756556,871.94,870.43,0.1992568]
[1757310343574,0.65756556,871.93,870.43,0.1992568]
[1757310343774,0.65756556,871.92,870.43,0.1992568]
[1757310343973,0.65756556,871.91,870.43,0.1992568]
[1757310344176,0.65756556,871.9,870.43,0.1992568]
[1757310344470,0.65756556,871.89,870.43,0.1992568]
[1757310344678,0.65756556,871.88,870.43,0.1992568]
[1757310344972,0.65756556,871.87,870.43,0.1992568]
[1757310345179,0.65756556,871.86,870.43,0.1992568]
[1757310345373,0.65756556,871.85,870.43,0.1992568]
[1757310345676,0.65756556,871.84,870.43,0.1992568]
[1757310345877,0.65756556,871.83,870.43,0.1992568]
[1757310346077,0.65756556,871.82,870.43,0.1992568]
[1757310346278,0.65756556,871.81,870.43,0.1992568]
[1757310346478,0.65756556,871.8,870.43,0.1992568]
[1757310346680,0.65756556,871.79,870.43,0.1992568]
[1757310346878,1.52467829,872.09,870.43,0.1992568]
[1757310346879,0.65756556,871.78,870.43,0.1992568]
[1757310347080,0.65756556,871.77,870.43,0.1992568]
[1757310347281,0.65756556,871.76,870.43,0.1992568]
[1757310347578,0.65756556,871.75,870.43,0.1992568]
[1757310347782,0.65756556,871.74,870.43,0.1992568]
[1757310348081,0.65756556,871.73,870.43,0.1992568]
[1757310348281,0.65756556,871.72,870.43,0.1992568]
[1757310348481,0.65756556,871.71,870.43,0.1992568]
[1757310348681,0.65756556,871.7,870.43,0.1992568]
[1757310348981,0.65756556,871.69,870.43,0.1992568]
[1757310349181,0.65756556,871.68,870.43,0.1992568]
[1757310349381,0.65756556,871.67,870.43,0.1992568]
[1757310349677,0.65599028,871.66,870.43,0.1992568]
[1757310349977,0.65599028,871.65,870.43,0.1992568]
[1757310350178,0.65599028,871.64,870.43,0.1992568]
[1757310350482,0.65599028,871.63,870.43,0.1992568]
[1757310350678,0.65599028,871.62,870.43,0.1992568]
[1757310350978,0.65599028,871.61,870.43,0.1992568]
[1757310351182,0.65599028,871.6,870.43,0.1992568]
[1757310351482,1.0144592,871.8,870.43,0.1992568]
[1757310351679,0.6554263,871.79,870.43,0.1992568]
[1757310351881,0.6554263,871.78,870.43,0.1992568]
[1757310352078,0.6554263,871.77,870.43,0.1992568]
[1757310352384,0.6554263,871.76,870.43,0.1992568]
[1757310352579,1.0144592,871.87,870.43,0.1992568]
[1757310352580,0.6554263,871.75,870.43,0.1992568]
[1757310352784,0.6554263,871.74,870.43,0.1992568]
[1757310352982,0.6554263,871.73,870.43,0.1992568]
[1757310353180,0.6554263,871.72,870.43,0.1992568]
[1757310353385,0.6554263,871.71,870.43,0.1992568]
[1757310353586,1.0144592,871.81,870.43,0.1992568]
[1757310353887,1.0144592,871.78,870.43,0.1992568]
[1757310354081,1.0144592,871.74,870.43,0.1992568]
[1757310354282,0.65529001,871.73,870.43,0.1992568]
[1757310354482,0.65529001,871.72,870.43,0.1992568]
[1757310354685,0.65529001,871.71,870.43,0.1992568]
[1757310354885,1.0144592,871.74,870.43,0.1992568]
[1757310355185,0.65519003,871.73,870.43,0.1992568]
[1757310355484,0.65519003,871.72,870.43,0.1992568]
[1757310355685,0.65519003,871.71,870.43,0.1992568]
[1757310355883,1.0144592,871.85,870.43,0.1992568]
[1757310356081,1.66955695,871.84,870.43,0.1992568]
[1757310356281,1.66955695,871.83,870.43,0.1992568]
[1757310356483,0.65509775,871.82,870.43,0.1992568]
[1757310356686,0.65509775,871.81,870.43,0.1992568]
[1757310356986,0.65509775,871.8,870.43,0.1992568]
[1757310357183,0.65509775,871.79,870.43,0.1992568]
[1757310357382,0.65509775,871.78,870.43,0.1992568]
[1757310357582,0.65509775,871.77,870.43,0.1992568]
[1757310357788,0.65509775,871.76,870.43,0.1992568]
[1757310357985,0.65509775,871.75,870.43,0.1992568]
[1757310358185,0.65509775,871.74,870.43,0.1992568]
[1757310358383,0.65509775,871.73,870.43,0.1992568]
[1757310358684,0.65509775,871.72,870.43,0.1992568]
[1757310358886,0.65509775,871.71,870.43,0.1992568]
[1757310359088,0.65509775,871.7,870.43,0.1992568]
[1757310359286,1.0144592,871.81,870.43,0.1992568]
[1757310359490,0.65474874,871.8,870.43,0.1992568]
[1757310359790,0.65474874,871.79,870.43,0.1992568]
[1757310359990,1.0144592,871.81,870.43,0.1992568]
[1757310359991,0.65474874,871.78,870.43,0.1992568]
[1757310360190,1.0144592,871.81,870.43,0.1992568]
[1757310360191,0.65474874,871.77,870.43,0.1992568]
[1757310360486,0.65474874,871.76,870.43,0.1992568]
[1757310360691,0.65474874,871.75,870.43,0.1992568]
[1757310360888,0.65474874,871.74,870.43,0.1992568]
[1757310361090,0.65474874,871.73,870.43,0.1992568]
[1757310361387,0.65474874,871.72,870.43,0.1992568]
[1757310361586,0.65474874,871.71,870.43,0.1992568]
[1757310361787,0.65474874,871.7,870.43,0.1992568]
[1757310361986,1.0144592,871.83,870.43,0.1992568]
[1757310362188,0.65468152,871.82,870.43,0.1992568]
[1757310362387,0.65468152,871.81,870.43,0.1992568]
[1757310362591,0.65468152,871.8,870.43,0.1992568]
[1757310362891,0.65468152,871.79,870.43,0.1992568]
[1757310363090,1.0144592,871.83,870.43,0.1992568]
[1757310363091,0.65468152,871.78,870.43,0.1992568]
[1757310363397,0.65468152,871.77,870.43,0.1992568]
[1757310363590,0.65468152,871.76,870.43,0.1992568]
[1757310363791,0.65468152,871.75,870.43,0.1992568]
[1757310363993,0.65468152,871.74,870.43,0.1992568]
[1757310364191,0.65468152,871.73,870.43,0.1992568]
[1757310364392,0.65468152,871.72,870.43,0.1992568]
[1757310364593,0.65468152,871.71,870.43,0.1992568]
[1757310364791,0.65468152,871.7,870.43,0.1992568]
[1757310364993,0.65468152,871.69,870.43,0.1992568]
[1757310365193,1.0144592,871.82,870.43,0.1992568]
[1757310365393,1.66918774,871.81,870.43,0.1992568]
[1757310365594,1.0144592,871.71,870.43,0.1992568]
[1757310365893,0.65472854,871.7,870.43,0.1992568]
[1757310366092,0.65472854,871.69,870.43,0.1992568]
[1757310366289,1.0144592,871.71,870.43,0.1992568]
[1757310366290,1.0144592,871.73,870.43,0.1992568]
[1757310366494,0.6546708,871.72,870.43,0.1992568]
[1757310366692,0.6546708,871.71,870.43,0.1992568]
[1757310366895,0.6546708,871.7,870.43,0.1992568]
[1757310367093,0.6546708,871.69,870.43,0.1992568]
[1757310367294,1.0144592,871.74,870.43,0.1992568]
[1757310367493,0.65465748,871.73,870.43,0.1992568]
[1757310367695,0.65465748,871.72,870.43,0.1992568]
[1757310367990,0.65465748,871.71,870.43,0.1992568]
[1757310368195,2.53116535,872.65,870.43,0.1992568]
[1757310368196,0.65465748,871.7,870.43,0.1992568]
[1757310368394,0.65465748,871.69,870.43,0.1992568]
[1757310368593,1.0144592,871.69,870.43,0.1992568]
[1757310372700,1.0144592,871.71,870.43,0.1992568]
[1757310372996,1.0144592,871.75,870.43,0.1992568]
[1757310373199,1.0144592,871.78,870.43,0.1992568]
[1757310373397,0.65466715,871.77,870.43,0.1992568]
[1757310373598,0.65466715,871.76,870.43,0.1992568]
[1757310373900,0.65466715,871.75,870.43,0.1992568]
[1757310374102,1.0144592,871.79,870.43,0.1992568]
[1757310374301,0.65467654,871.78,870.43,0.1992568]
[1757310374501,0.65467654,871.77,870.43,0.1992568]
[1757310374701,0.65467654,871.76,870.43,0.1992568]
[1757310374898,1.0144592,871.79,870.43,0.1992568]
[1757310374899,0.65467654,871.75,870.43,0.1992568]
[1757310375202,1.0144592,871.79,870.43,0.1992568]
[1757310375501,0.65469565,871.78,870.43,0.1992568]
[1757310375697,0.65469565,871.77,870.43,0.1992568]
[1757310375901,0.65469565,871.76,870.43,0.1992568]
[1757310376099,1.66915485,871.75,870.43,0.1992568]
[1757310376302,1.66917475,871.74,870.43,0.1992568]
[1757310376502,1.0144592,871.74,870.43,0.1992568]
[1757310376702,0.65474399,871.73,870.43,0.1992568]
[1757310377003,1.0144592,871.77,870.43,0.1992568]
[1757310377202,0.65414908,871.76,870.43,0.1992568]
[1757310377402,0.65414908,871.75,870.43,0.1992568]
[1757310377598,0.65414908,871.74,870.43,0.1992568]
[1757310377799,0.65414908,871.73,870.43,0.1992568]
[1757310378002,1.0144592,871.77,870.43,0.1992568]
[1757310378204,0.65418701,871.76,870.43,0.1992568]
[1757310378407,0.65418701,871.75,870.43,0.1992568]
[1757310378601,0.65418701,871.74,870.43,0.1992568]
[1757310378805,0.65418701,871.73,870.43,0.1992568]
[1757310379003,1.0144592,871.77,870.43,0.1992568]
[1757310379300,0.65422999,871.76,870.43,0.1992568]
[1757310379504,0.65422999,871.75,870.43,0.1992568]
[1757310379805,0.65422999,871.74,870.43,0.1992568]
[1757310380105,0.65422999,871.73,870.43,0.1992568]
[1757310380306,1.0144592,871.78,870.43,0.1992568]
[1757310380603,0.65433161,871.77,870.43,0.1992568]
[1757310380808,0.65433161,871.76,870.43,0.1992568]
[1757310381006,0.65433161,871.75,870.43,0.1992568]
[1757310381204,0.65433161,871.74,870.43,0.1992568]
[1757310381506,0.65433161,871.73,870.43,0.1992568]
[1757310381703,1.0144592,871.76,870.43,0.1992568]
[1757310381907,0.65439069,871.75,870.43,0.1992568]
[1757310382106,0.65439069,871.74,870.43,0.1992568]
[1757310382406,0.65439069,871.73,870.43,0.1992568]
[1757310382710,1.0144592,871.76,870.43,0.1992568]
[1757310382909,1.6689269,871.75,870.43,0.1992568]
[1757310383110,0.6544677,871.74,870.43,0.1992568]
[1757310383407,0.6544677,871.73,870.43,0.1992568]
[1757310383707,1.0144592,871.74,870.43,0.1992568]
[1757310383910,0.65454935,871.73,870.43,0.1992568]
[1757310384107,1.0144592,871.74,870.43,0.1992568]
[1757310384312,0.65454935,871.73,870.43,0.1992568]
[1757310384512,1.0144592,871.74,870.43,0.1992568]
[1757310384813,0.65464405,871.73,870.43,0.1992568]
[1757310385007,1.0144592,871.74,870.43,0.1992568]
[1757310385208,0.65464408,871.73,870.43,0.1992568]
[1757310385407,1.0144592,871.75,870.43,0.1992568]
[1757310385609,0.6547558,871.74,870.43,0.1992568]
[1757310385814,0.6547558,871.73,870.43,0.1992568]
[1757310386011,1.0144592,871.75,870.43,0.1992568]
[1757310386209,0.65475576,871.74,870.43,0.1992568]
[1757310386410,0.65475576,871.73,870.43,0.1992568]
[1757310386614,1.0144592,871.73,870.43,0.1992568]
[1757310388116,1.0144592,871.78,870.43,0.1992568]
[1757310388415,1.0144592,871.81,870.43,0.1992568]
[1757310388615,0.6552242,871.8,870.43,0.1992568]
[1757310388812,0.6552242,871.79,870.43,0.1992568]